bitfinex/quotes_SOLUSD_20250806
["timestamp","ask_amount","ask_price","bid_price","bid_amount"]
[1754472801653,4.0728875,164.41,164.37,8.3351516]
[1754472801955,8.3351516,164.41,164.36,8.3951516]
[1754472802145,9.0051516,164.41,164.37,6.08383524]
[1754472802340,9.0051516,164.4,164.33,24.27836501]
[1754472802547,8.3351516,164.4,164.35,8.3351516]
[1754472802757,0.67,164.39,164.35,8.3351516]
[1754472803552,0.67,164.39,164.36,6.0842054]
[1754472804373,4.0728875,164.41,164.38,8.3351516]
[1754472804585,4.0728875,164.43,164.39,8.3951516]
[1754472805249,4.0728875,164.43,164.39,8.3351516]
[1754472805475,4.0728875,164.43,164.4,8.3351516]
[1754472806047,4.7428875,164.44,164.4,8.3351516]
[1754472806554,12.4080391,164.44,164.4,8.3351516]
[1754472806758,4.7428875,164.43,164.4,8.3351516]
[1754472807172,0.67,164.43,164.4,8.3351516]
[1754472807385,0.67,164.42,164.39,6.08309507]
[1754472807763,13.0780391,164.44,164.39,14.41824667]
[1754472807962,4.0728875,164.43,164.39,14.41824667]
[1754472808158,4.7428875,164.43,164.39,14.41824667]
[1754472808369,0.67,164.43,164.39,14.41824667]
[1754472809087,9.0051516,164.43,164.39,6.08309507]
[1754472809249,8.3351516,164.41,164.38,6.08333949]
[1754472809455,9.0051516,164.43,164.38,14.41849109]
[1754472809652,10.15724686,164.45,164.38,14.41849109]
[1754472809856,8.3351516,164.43,164.38,14.41849109]
[1754472810053,0.67,164.42,164.38,14.41849109]
[1754472810473,10.60121768,164.43,164.39,8.3351516]
[1754472810675,10.60121768,164.43,164.39,8.3951516]
[1754472810990,11.27121768,164.43,164.39,8.3351516]
[1754472811577,11.27121768,164.43,164.38,6.08333949]
[1754472811578,8.3351516,164.41,164.38,6.08333949]
[1754472811785,0.67,164.42,164.36,88.08390288]
[1754472811786,8.3351516,164.39,164.36,88.08390288]
[1754472812304,9.0051516,164.38,164.34,6.08488857]
[1754472812590,9.0051516,164.38,164.32,26.0]
[1754472812591,8.3351516,164.36,164.32,6.08558201]
[1754472812795,0.67,164.35,164.32,6.08558201]
[1754472813295,8.3351516,164.36,164.32,6.08558201]
[1754472813488,9.0051516,164.39,164.34,8.3351516]
[1754472813694,9.0051516,164.39,164.35,6.0845756]
[1754472814067,0.67,164.38,164.35,6.0845756]
[1754472814595,12.41346313,164.4,164.35,14.4197272]
[1754472814788,8.3351516,164.4,164.35,14.4197272]
[1754472815086,9.0051516,164.39,164.35,14.4197272]
[1754472815665,0.67,164.39,164.35,14.4197272]
[1754472816084,0.67,164.38,164.35,6.0845756]
[1754472816359,0.67,164.37,164.35,6.0845756]
[1754472816789,11.01813626,164.39,164.35,14.4197272]
[1754472816978,10.34813626,164.39,164.35,14.4197272]
[1754472817187,10.34813626,164.39,164.36,8.3351516]
[1754472817389,10.34813626,164.39,164.38,8.3351516]
[1754472817577,10.34813626,164.39,164.38,23.50136717]
[1754472818198,10.34813626,164.39,164.38,29.58483231]
[1754472818520,0.67,164.44,164.38,29.58483231]
[1754472818819,8.3351516,164.46,164.41,8.3351516]
[1754472819119,0.67,164.45,164.41,8.3351516]
[1754472819308,12.4154185,164.46,164.41,8.3351516]
[1754472819492,0.67,164.44,164.41,8.3351516]
[1754472820125,0.67,164.43,164.4,14.41768085]
[1754472820418,0.67,164.42,164.4,6.08252925]
[1754472820724,0.7,164.44,164.41,8.3351516]
[1754472820933,0.03,164.44,164.41,8.3351516]
[1754472821085,0.67,164.43,164.4,14.41768085]
[1754472821285,0.67,164.42,164.4,14.41768085]
[1754472822019,0.03,164.42,164.41,8.3351516]
[1754472822227,0.03,164.42,164.41,29.58372225]
[1754472822425,0.03,164.42,164.41,30.19195775]
[1754472823001,0.03,164.44,164.43,23.44136717]
[1754472823387,0.03,164.44,164.43,23.50136717]
[1754472824914,0.03,164.44,164.43,14.41676687]
[1754472830822,0.72,164.44,164.42,6.08187121]
[1754472831131,0.69,164.43,164.42,14.41702281]
[1754472831932,0.03,164.44,164.42,14.41702281]
[1754472832802,0.03,164.44,164.43,14.41676687]
[1754472833008,0.03,164.44,164.43,29.52298244]
[1754472833526,0.03,164.44,164.43,29.58298244]
[1754472834799,1e-08,164.44,164.43,29.58298244]
[1754472835721,1e-08,164.44,164.43,111.58298244]
[1754472835908,0.03,164.49,164.47,41.10621557]
[1754472836111,0.03,164.49,164.48,8.3351516]
[1754472836618,0.03,164.49,164.48,14.41491813]
[1754472837194,0.72,164.49,164.48,14.41491813]
[1754472838922,0.03,164.49,164.48,14.41491813]
[1754472839130,0.72,164.49,164.48,14.41491813]
[1754472840210,0.72,164.49,164.48,96.41491813]
[1754472840414,0.03,164.49,164.48,96.41491813]
[1754472840909,0.72,164.49,164.48,96.41491813]
[1754472845423,0.72,164.49,164.48,82.0]
[1754472845632,0.72,164.49,164.45,8.3351516]
[1754472846409,0.72,164.49,164.45,14.41568211]
[1754472846609,0.72,164.49,164.46,8.3351516]
[1754472847739,0.72,164.49,164.47,8.3351516]
[1754472848809,0.03,164.49,164.48,6.07976653]
[1754472849009,0.72,164.49,164.48,6.07976653]
[1754472855633,0.03,164.49,164.48,14.41491813]
[1754472860948,0.03,164.49,164.48,88.07976653]
[1754472861251,0.03,164.49,164.48,96.41491813]
[1754472864762,0.75,164.49,164.48,96.41491813]
[1754472865055,0.03,164.49,164.48,96.41491813]
[1754472866341,0.75,164.49,164.48,88.07976653]
[1754472866545,4.84457791,164.49,164.48,88.07976653]
[1754472867662,0.75,164.49,164.48,88.07976653]
[1754472868064,0.03,164.49,164.48,88.07976653]
[1754472868268,0.75,164.49,164.48,88.07976653]
[1754472869237,0.75,164.49,164.48,82.0]
[1754472869444,4.8456685,164.49,164.48,82.0]
[1754472870055,13.1808201,164.49,164.48,82.0]
[1754472871279,4.8456685,164.49,164.48,82.0]
[1754472871984,13.1808201,164.49,164.45,88.080723]
[1754472872149,4.0956685,164.48,164.45,88.080723]
[1754472872460,4.8156685,164.47,164.45,88.080723]
[1754472872640,0.72,164.47,164.45,88.080723]
[1754472872839,13.15233172,164.46,164.45,82.0]
[1754472874456,4.81718012,164.46,164.45,82.0]
[1754472874970,13.15233172,164.46,164.45,82.0]
[1754472875853,13.15233172,164.46,164.44,0.06]
[1754472876169,13.15233172,164.45,164.44,0.06]
[1754472878088,4.81718012,164.45,164.44,0.06]
[1754472879393,13.15233172,164.45,164.44,0.06]
[1754472881901,19.23320736,164.45,164.44,0.06]
[1754472882185,13.15233172,164.45,164.44,0.06]
[1754472883603,19.23320736,164.45,164.44,0.06]
[1754472888278,10.89805576,164.45,164.44,0.06]
[1754472888479,19.23320736,164.45,164.44,0.06]
[1754472892886,24.34720649,164.45,164.44,0.06]
[1754472897423,26.0,164.43,164.42,0.06]
[1754472897603,12.43233172,164.43,164.42,0.06]
[1754472898115,13.12233172,164.43,164.42,0.06]
[1754472898925,19.20394699,164.43,164.42,0.06]
[1754472900304,18.51394699,164.43,164.42,0.06]
[1754472900813,45.20394699,164.43,164.42,0.06]
[1754472901005,19.20394699,164.43,164.42,0.06]
[1754472901503,45.20394699,164.43,164.42,0.06]
[1754472901825,19.20394699,164.43,164.42,0.06]
[1754472902316,45.20394699,164.43,164.42,0.06]
[1754472902626,19.20394699,164.43,164.42,0.06]
[1754472903124,45.20394699,164.43,164.42,0.06]
[1754472903327,19.20394699,164.43,164.42,0.06]
[1754472905808,19.18371273,164.43,164.42,0.06]
[1754472907210,45.18371273,164.43,164.42,0.06]
[1754472907412,19.18371273,164.43,164.42,0.06]
[1754472907826,45.18371273,164.43,164.42,0.06]
[1754472909205,19.18371273,164.43,164.42,0.06]
[1754472909412,26.0,164.41,164.4,0.06]
[1754472909629,51.84343138,164.41,164.38,0.06]
[1754472909805,23.44136717,164.39,164.38,0.06]
[1754472910011,26.0,164.36,164.31,0.2]
[1754472910315,8.3351516,164.32,164.31,0.2]
[1754472910713,9.0251516,164.32,164.31,0.2]
[1754472911310,8.3351516,164.32,164.31,0.2]
[1754472911528,12.41209746,164.32,164.31,0.2]
[1754472913635,8.3351516,164.34,164.31,0.26]
[1754472913999,8.3351516,164.34,164.32,0.06]
[1754472914630,9.0251516,164.33,164.31,0.2]
[1754472914833,8.3351516,164.32,164.31,0.2]
[1754472915130,4.07849873,164.34,164.31,6.28599068]
[1754472915430,4.07849873,164.35,164.32,0.06]
[1754472915634,4.07849873,164.35,164.33,8.3351516]
[1754472915837,10.60253849,164.36,164.35,6.0845756]
[1754472916135,10.60253849,164.36,164.35,6.1445756]
[1754472916317,14.68138931,164.36,164.35,6.1445756]
[1754472916517,10.60253849,164.36,164.35,6.1445756]
[1754472916923,10.60253849,164.36,164.35,0.06]
[1754472917124,10.60253849,164.36,164.34,14.42000754]
[1754472917432,10.60253849,164.36,164.34,14.48000754]
[1754472918542,10.60253849,164.36,164.32,6.08568646]
[1754472918717,11.29253849,164.36,164.32,14.48083806]
[1754472919154,10.60253849,164.36,164.32,14.48083806]
[1754472919326,11.29253849,164.36,164.32,14.48083806]
[1754472919942,10.60253849,164.36,164.32,14.48083806]
[1754472920237,11.26253849,164.36,164.32,14.48083806]
[1754472920632,4.08231242,164.35,164.32,14.48083806]
[1754472921025,4.08231242,164.35,164.32,6.08568646]
[1754472921231,10.60253849,164.36,164.34,8.3351516]
[1754472921417,10.60253849,164.36,164.35,8.3951516]
[1754472922215,10.60253849,164.36,164.35,14.4797272]
[1754472924566,10.60253849,164.36,164.35,6.0845756]
[1754472924728,10.60253849,164.36,164.33,14.42046773]
[1754472925052,11.26253849,164.36,164.33,6.08531613]
[1754472925225,0.66,164.35,164.33,6.08531613]
[1754472925425,10.60253849,164.36,164.33,6.08531613]
[1754472925945,10.60253849,164.36,164.33,14.42046773]
[1754472926329,11.26253849,164.36,164.33,14.42046773]
[1754472926691,11.26253849,164.36,164.33,6.08531613]
[1754472927139,10.60253849,164.36,164.33,14.42046773]
[1754472927449,10.60253849,164.36,164.35,8.3351516]
[1754472927631,10.60253849,164.36,164.35,8.3951516]
[1754472928669,10.60253849,164.36,164.35,111.58594277]
[1754472928884,0.03,164.4,164.35,126.79738177]
[1754472929188,0.03,164.4,164.39,8.3351516]
[1754472930571,0.03,164.4,164.39,14.41824667]
[1754472934479,0.03,164.4,164.37,21.29331816]
[1754472934683,0.03,164.4,164.39,8.3351516]
[1754472936092,0.03,164.4,164.39,14.41824667]
[1754472936295,0.03,164.4,164.39,111.58446224]
[1754472936610,0.03,164.4,164.39,112.19277174]
[1754472936766,0.03,164.44,164.4,15.10621557]
[1754472936970,0.03,164.44,164.43,8.3351516]
[1754472937403,0.03,164.44,164.4,97.10621557]
[1754472937579,0.69,164.44,164.4,90.3351516]
[1754472938478,0.69,164.44,164.41,14.41750668]
[1754472938679,0.66,164.43,164.41,14.41750668]
[1754472939198,0.66,164.42,164.4,6.082589]
[1754472939375,0.66,164.41,164.4,6.082589]
[1754472939577,0.66,164.41,164.37,14.41898684]
[1754472939777,0.66,164.4,164.38,8.3351516]
[1754472940396,18.50023821,164.43,164.38,14.418308]
[1754472940709,18.50023821,164.43,164.35,30.37762445]
[1754472940710,0.66,164.4,164.35,30.31762445]
[1754472940877,0.66,164.4,164.35,8.3351516]
[1754472940878,8.9951516,164.4,164.35,8.3351516]
[1754472941077,0.66,164.39,164.34,8.3351516]
[1754472941284,8.3351516,164.39,164.34,6.08494584]
[1754472941589,8.3351516,164.39,164.34,14.42009744]
[1754472941794,6.0816164,164.43,164.34,6.08494584]
[1754472941795,8.3351516,164.37,164.34,6.08494584]
[1754472941992,8.3351516,164.36,164.33,6.08519871]
[1754472943585,8.3351516,164.37,164.33,6.08519871]
[1754472943995,4.08478373,164.38,164.33,14.42035031]
[1754472943996,12.41993533,164.38,164.33,14.42035031]
[1754472944196,8.3351516,164.38,164.33,14.42035031]
[1754472945807,8.3351516,164.37,164.33,6.08519871]
[1754472947706,12.41982642,164.38,164.33,6.08519871]
[1754472947915,4.08467482,164.37,164.33,6.08519871]
[1754472948094,8.3351516,164.38,164.33,6.08519871]
[1754472948513,8.3351516,164.38,164.33,14.42035031]
[1754472949118,8.3351516,164.37,164.33,14.42035031]
[1754472949486,8.3351516,164.37,164.33,6.08519871]
[1754472951188,4.08472802,164.39,164.36,8.3351516]
[1754472951498,4.11472802,164.42,164.38,8.3351516]
[1754472951689,12.44987962,164.42,164.37,8.3351516]
[1754472951889,4.08472802,164.41,164.37,8.3351516]
[1754472952212,8.3351516,164.4,164.35,8.3351516]
[1754472952693,8.3351516,164.4,164.34,97.10621557]
[1754472953015,8.3351516,164.4,164.35,8.3351516]
[1754472953390,8.3351516,164.41,164.37,6.08383524]
[1754472953591,12.41881813,164.41,164.37,6.08383524]
[1754472953902,8.3351516,164.4,164.37,6.08383524]
[1754472955919,12.41883963,164.41,164.37,6.08383524]
[1754472956740,8.3351516,164.39,164.34,8.3351516]
[1754472957028,8.3351516,164.38,164.34,14.42009744]
[1754472957222,4.08368803,164.39,164.35,8.3351516]
[1754472957417,4.08368803,164.4,164.36,8.3351516]
[1754472957720,12.41883963,164.41,164.36,8.3351516]
[1754472958013,4.08368803,164.41,164.38,14.41861674]
[1754472958516,4.08368803,164.41,164.39,8.3351516]
[1754472958720,0.03,164.42,164.4,8.3351516]
[1754472959016,0.03,164.42,164.41,8.3351516]
[1754472959237,0.03,164.42,164.4,8.3351516]
[1754472959397,0.03,164.42,164.41,8.3351516]
[1754472960416,26.0,164.38,164.33,0.06]
[1754472960634,12.41883963,164.37,164.33,0.06]
[1754472962607,8.3351516,164.36,164.33,0.06]
[1754472962807,4.08368803,164.35,164.33,0.06]
[1754472963023,4.08368803,164.37,164.33,8.3951516]
[1754472963437,12.41883963,164.37,164.33,8.3951516]
[1754472963625,8.3351516,164.38,164.34,6.08494584]
[1754472963817,4.09081264,164.37,164.34,6.08494584]
[1754472964014,12.42596424,164.37,164.34,6.08494584]
[1754472964215,8.3351516,164.37,164.34,6.08494584]
[1754472964429,12.42619702,164.38,164.34,6.08494584]
[1754472964625,4.09104542,164.37,164.34,6.08494584]
[1754472964841,12.42619702,164.37,164.34,6.08494584]
[1754472965010,8.3351516,164.37,164.34,6.08494584]
[1754472965423,12.42623622,164.37,164.34,6.08494584]
[1754472965626,8.3351516,164.37,164.34,6.08494584]
[1754472966027,12.42657018,164.37,164.34,6.08494584]
[1754472966342,8.3351516,164.37,164.34,6.08494584]
[1754472966550,8.3351516,164.36,164.33,0.06]
[1754472966842,8.3351516,164.34,164.33,0.06]
[1754472967041,12.4269062,164.34,164.33,0.06]
[1754472967222,8.3351516,164.34,164.33,0.06]
[1754472967619,12.4269062,164.34,164.33,0.06]
[1754472967924,8.3351516,164.34,164.33,0.06]
[1754472968432,12.4269062,164.34,164.33,0.06]
[1754472968738,8.3351516,164.34,164.33,0.06]
[1754472968948,12.4269062,164.34,164.33,0.06]
[1754472970324,4.0917546,164.34,164.33,0.06]
[1754472970526,4.0917546,164.35,164.33,14.48030656]
[1754472970721,12.4269062,164.37,164.33,6.14515496]
[1754472970926,4.0917546,164.36,164.33,6.14515496]
[1754472971145,4.0917546,164.36,164.33,14.48030656]
[1754472971844,4.0917546,164.36,164.33,0.06]
[1754472972321,12.4269062,164.36,164.33,0.06]
[1754472972527,4.0917546,164.35,164.33,0.06]
[1754472973038,4.0917546,164.36,164.33,0.06]
[1754472974022,12.4269062,164.36,164.33,0.06]
[1754472974221,4.0917546,164.35,164.33,0.06]
[1754472974421,8.3351516,164.36,164.33,0.06]
[1754472975220,4.0917546,164.37,164.33,0.06]
[1754472975717,38.4269062,164.38,164.33,8.3951516]
[1754472975924,4.0917546,164.37,164.34,14.42009744]
[1754472976127,4.0917546,164.38,164.34,14.42009744]
[1754472976324,4.0917546,164.37,164.34,14.42009744]
[1754472976517,4.0917546,164.38,164.34,14.42009744]
[1754472976721,4.0917546,164.37,164.35,8.3351516]
[1754472976950,4.0917546,164.39,164.35,8.3351516]
[1754472977454,4.0917546,164.39,164.34,6.08494584]
[1754472977636,4.0917546,164.39,164.35,8.3351516]
[1754472977829,12.4269062,164.39,164.34,14.42009744]
[1754472978032,8.3351516,164.38,164.34,6.08494584]
[1754472978236,12.4269062,164.38,164.34,6.08494584]
[1754472978752,8.3351516,164.38,164.34,6.08494584]
[1754472978942,12.42433034,164.38,164.34,6.08494584]
[1754472980254,12.42433034,164.38,164.34,8.3351516]
[1754472980632,4.08917874,164.38,164.34,8.3351516]
[1754472980833,12.42433034,164.38,164.34,8.3351516]
[1754472981044,18.50781524,164.38,164.34,8.3351516]
[1754472981250,8.3351516,164.35,164.33,0.06]
[1754472981453,12.42433034,164.34,164.33,0.06]
[1754472981856,38.42433034,164.34,164.33,0.06]
[1754472982430,44.50927618,164.34,164.33,0.06]
[1754472983241,36.17412458,164.34,164.33,0.06]
[1754472983443,44.50927618,164.34,164.33,0.06]
[1754472985843,33.61549175,164.34,164.33,0.06]
[1754472986049,38.72665036,164.34,164.33,0.06]
[1754472986247,38.72665036,164.34,164.32,0.06]
[1754472986248,34.3351516,164.33,164.32,0.06]
[1754472986564,38.42433034,164.33,164.32,0.06]
[1754472988148,44.50964647,164.33,164.32,0.06]
[1754472993902,59.61586204,164.33,164.31,0.2]
[1754472994180,27.53054591,164.32,164.31,0.2]
[1754472994386,33.61623237,164.32,164.31,0.2]
[1754472995269,33.61623237,164.32,164.3,0.06]
[1754472995574,26.0,164.28,164.27,0.2]
[1754472995761,38.42433034,164.28,164.27,0.2]
[1754472996558,44.51149858,164.28,164.27,0.2]
[1754472997785,38.42433034,164.28,164.27,0.2]
[1754472997959,40.42231984,164.28,164.27,0.2]
[1754472998376,44.50541592,164.28,164.27,0.2]
[1754472998563,38.41824768,164.28,164.27,0.2]
[1754472998763,8.3351516,164.29,164.27,0.2]
[1754472999164,8.3351516,164.28,164.27,0.2]
[1754472999685,6.08684336,164.29,164.27,0.2]
[1754472999890,8.3351516,164.28,164.27,0.2]
[1754473001899,34.3351516,164.29,164.27,0.2]
[1754473002794,14.42231984,164.28,164.27,0.2]
[1754473003393,18.50559886,164.28,164.27,0.2]
[1754473004171,6.08716824,164.28,164.27,0.2]
[1754473004393,26.0,164.29,164.27,0.2]
[1754473004394,34.3351516,164.29,164.27,0.2]
[1754473004598,20.2096324,164.34,164.27,0.2]
[1754473004599,34.3351516,164.31,164.27,0.2]
[1754473004771,4.08426343,164.3,164.27,6.28747253]
[1754473004971,12.41941503,164.3,164.27,6.28747253]
[1754473005681,4.08426343,164.3,164.27,14.62262413]
[1754473005883,12.41887399,164.32,164.27,14.62262413]
[1754473006696,18.50457304,164.32,164.27,14.62262413]
[1754473006872,14.42047421,164.33,164.28,8.3351516]
[1754473007076,12.41923993,164.32,164.27,14.62262413]
[1754473008269,8.3351516,164.31,164.27,6.28747253]
[1754473008469,14.42099652,164.32,164.27,14.62262413]
[1754473008891,8.3351516,164.32,164.27,14.62262413]
[1754473009492,4.08516852,164.32,164.27,14.62262413]
[1754473009689,4.08516852,164.32,164.28,8.3351516]
[1754473009885,18.50578477,164.33,164.28,14.42199195]
[1754473010092,4.08516852,164.32,164.28,14.42199195]
[1754473010295,12.42032012,164.33,164.28,14.42199195]
[1754473011202,4.08516852,164.32,164.28,14.42199195]
[1754473012403,12.42032012,164.32,164.28,6.08684035]
[1754473012600,8.3351516,164.3,164.27,0.2]
[1754473013494,12.42032012,164.31,164.27,6.28753007]
[1754473015302,18.50639561,164.31,164.27,0.2]
[1754473015485,4.08516852,164.3,164.27,0.2]
[1754473015800,6.08602539,164.32,164.27,6.28750962]
[1754473016107,8.3351516,164.31,164.27,6.28750962]
[1754473016609,12.42297793,164.31,164.27,6.28750962]
[1754473016901,12.42297793,164.31,164.27,14.62266122]
[1754473017088,10.17392964,164.31,164.27,8.5351516]
[1754473017293,8.3351516,164.3,164.27,0.2]
[1754473017477,12.42297793,164.3,164.27,0.2]
[1754473018595,8.3351516,164.29,164.27,0.2]
[1754473019985,12.42495922,164.29,164.27,0.2]
[1754473020192,6.08651589,164.3,164.27,0.2]
[1754473020389,4.09006941,164.3,164.27,14.62254687]
[1754473020612,4.12006941,164.31,164.28,8.3351516]
[1754473020800,4.12006941,164.31,164.29,8.3351516]
[1754473021210,0.03,164.31,164.29,8.3351516]
[1754473021416,0.03,164.31,164.28,14.42207712]
[1754473022209,4.12006941,164.31,164.28,14.42207712]
[1754473023199,0.03,164.31,164.28,14.42207712]
[1754473023696,0.03,164.31,164.27,14.62256655]
[1754473024117,0.03,164.31,164.27,0.2]
[1754473024289,12.43151684,164.3,164.27,6.28739863]
[1754473024492,8.3651516,164.31,164.27,6.28739863]
[1754473024790,4.09666414,164.3,164.27,14.62255023]
[1754473024990,0.03,164.31,164.27,14.62255023]
[1754473025201,4.09666414,164.3,164.27,6.28739863]
[1754473025386,4.09666414,164.29,164.27,0.2]
[1754473025610,4.09666414,164.28,164.27,0.2]
[1754473025809,4.09666414,164.29,164.27,0.2]
[1754473026008,4.09666414,164.28,164.27,0.2]
[1754473028113,4.09666414,164.28,164.27,6.2875388]
[1754473028317,4.09666414,164.28,164.27,0.2]
[1754473029900,12.43181574,164.28,164.27,0.2]
[1754473032334,18.51898398,164.28,164.27,0.2]
[1754473032627,12.43181574,164.28,164.27,0.2]
[1754473035518,18.51898398,164.28,164.27,0.2]
[1754473040433,26.0,164.26,164.25,0.1]
[1754473040615,38.43181574,164.26,164.25,0.1]
[1754473041222,44.51972515,164.26,164.25,0.1]
[1754473043553,64.75504819,164.26,164.25,0.1]
[1754473043720,41.31185791,164.26,164.25,0.1]
[1754473043921,49.64700951,164.26,164.25,0.1]
[1754473044347,44.51972515,164.26,164.25,0.1]
[1754473044521,4.09666414,164.26,164.25,0.1]
[1754473045742,12.43181574,164.26,164.25,0.1]
[1754473047447,4.09666414,164.26,164.25,0.1]
[1754473049163,10.18457355,164.26,164.25,0.1]
[1754473050442,18.51972515,164.26,164.25,0.1]
[1754473050744,23.64700951,164.26,164.25,0.1]
[1754473051328,18.51972515,164.26,164.25,0.1]
[1754473052062,10.18457355,164.26,164.25,0.1]
[1754473052233,18.51972515,164.26,164.25,0.1]
[1754473052641,10.18457355,164.26,164.25,0.1]
[1754473052950,18.51972515,164.26,164.25,0.1]
[1754473053346,4.09666414,164.26,164.25,0.1]
[1754473055261,10.18457355,164.26,164.25,0.1]
[1754473055456,12.43181574,164.26,164.25,0.1]
[1754473059685,18.51972515,164.26,164.25,0.1]
[1754473060472,61.15972515,164.26,164.25,0.1]
[1754473062856,55.07181574,164.26,164.25,0.1]
[1754473063482,61.15972515,164.26,164.25,0.1]
[1754473065678,61.15904484,164.26,164.25,0.1]
[1754473068883,66.27902463,164.26,164.25,0.1]
[1754473069388,26.0,164.24,164.23,0.2]
[1754473069552,81.05113543,164.24,164.23,0.2]
[1754473069755,87.13978618,164.24,164.23,0.2]
[1754473070698,87.13978618,164.24,164.15,6.09176216]
[1754473070699,26.0,164.2,164.11,6.09347388]
[1754473070992,8.3351516,164.17,164.12,8.3351516]
[1754473071160,42.64,164.16,164.13,8.3351516]
[1754473071360,42.64,164.15,164.13,8.3351516]
[1754473071983,42.64,164.15,164.09,30.3415337]
[1754473072166,42.64,164.15,164.1,6.09384521]
[1754473072483,42.64,164.15,164.12,8.3351516]
[1754473073352,42.64,164.15,164.11,8.3351516]
[1754473073570,42.64,164.15,164.1,6.09384521]
[1754473073571,42.64,164.15,164.12,8.3351516]
[1754473073967,42.64,164.15,164.12,14.42820765]
[1754473074284,42.64,164.15,164.12,6.09305605]
[1754473074462,42.64,164.15,164.12,14.42820765]
[1754473075064,42.64,164.15,164.12,8.3351516]
[1754473075277,42.64,164.15,164.12,14.42823489]
[1754473075789,42.64,164.15,164.12,8.3351516]
[1754473076467,42.64,164.15,164.11,8.3351516]
[1754473076789,48.73199701,164.15,164.11,8.3351516]
[1754473076967,48.73199701,164.15,164.11,90.3351516]
[1754473077509,48.73199701,164.15,164.1,6.09374269]
[1754473077510,57.06714861,164.15,164.1,8.3351516]
[1754473077859,8.3351516,164.13,164.08,201.43768637]
[1754473078073,42.64,164.12,164.08,111.10253477]
[1754473078281,42.64,164.12,164.09,8.3351516]
[1754473079278,42.64,164.12,164.08,111.10253477]
[1754473079279,42.64,164.12,164.08,113.34321928]
[1754473079482,42.64,164.12,164.09,8.3351516]
[1754473079686,42.64,164.12,164.08,105.00806768]
[1754473079999,42.64,164.12,164.09,8.3351516]
[1754473080506,57.06828023,164.12,164.08,105.00806768]
[1754473080664,50.9751516,164.12,164.08,105.00806768]
[1754473081175,50.9751516,164.12,164.08,113.34321928]
[1754473081372,8.3351516,164.1,164.08,105.00806768]
[1754473081562,50.9751516,164.09,164.08,0.1]
[1754473081778,42.64,164.09,164.08,0.1]
[1754473081981,50.9751516,164.09,164.08,0.1]
[1754473082701,21.49266703,164.16,164.08,0.1]
[1754473082875,26.0,164.12,164.09,8.3351516]
[1754473083062,42.7,164.11,164.08,0.1]
[1754473083268,8.3351516,164.1,164.08,0.1]
[1754473083478,42.7,164.09,164.08,0.1]
[1754473084279,51.0351516,164.09,164.08,0.1]
[1754473084573,42.7,164.09,164.08,8.4351516]
[1754473084892,42.7,164.09,164.08,14.5297396]
[1754473085390,42.7,164.09,164.08,0.1]
[1754473085595,42.72,164.09,164.08,6.194588]
[1754473086178,42.72,164.09,164.08,0.1]
[1754473087083,42.72,164.09,164.08,6.194588]
[1754473087289,42.72,164.09,164.08,0.1]
[1754473088668,42.72,164.09,164.08,6.194588]
[1754473088870,42.72,164.09,164.08,14.5297396]
[1754473089072,42.72,164.09,164.08,8.4351516]
[1754473089271,42.72,164.09,164.08,0.1]
[1754473089821,51.0551516,164.09,164.08,0.1]
[1754473090816,57.14936818,164.09,164.08,0.1]
[1754473092108,102.3291063,164.09,164.08,0.1]
[1754473092977,44.50289073,164.09,164.08,0.1]
[1754473093183,77.1151516,164.09,164.08,0.1]
[1754473093922,83.20936818,164.09,164.08,0.1]
[1754473097931,87.27645357,164.09,164.08,0.1]
[1754473098100,105.59762357,164.09,164.08,0.1]
[1754473098306,101.53053818,164.09,164.08,0.1]
[1754473098728,105.59692586,164.09,164.08,0.1]
[1754473099133,102.38197143,164.09,164.08,0.1]
[1754473099445,120.70426043,164.09,164.08,0.1]
[1754473099803,87.27575586,164.09,164.08,0.1]
[1754473100317,102.38197143,164.09,164.08,0.1]
[1754473101631,120.70426043,164.09,164.08,0.1]
[1754473107442,105.59804486,164.09,164.08,0.1]
[1754473107640,87.27575586,164.09,164.08,0.1]
[1754473111049,82.47863043,164.09,164.08,0.1]